bitfinex-derivatives/quotes_SOLF0:USTF0_20241230
["timestamp","ask_amount","ask_price","bid_price","bid_amount"]
[1735568050039,2.6418,189.65,189.61,2.6422]
[1735568050237,9.94588318,189.68,189.59,1.4833]
[1735568050541,2.6417,189.66,189.62,2.6421]
[1735568053239,2.6418,189.65,189.62,2.6421]
[1735568054242,9.94588318,189.68,189.62,2.6421]
[1735568054443,2.6417,189.66,189.62,2.6421]
[1735568055444,2.6418,189.65,189.62,2.6421]
[1735568055649,12.02773061,189.66,189.59,4.1258]
[1735568056138,12.02773061,189.66,189.59,1.4833]
[1735568056344,2.642,189.64,189.6,2.6424]
[1735568056539,12.02773061,189.66,189.6,2.6424]
[1735568057043,2.642,189.63,189.6,2.6424]
[1735568057444,9.94588318,189.67,189.62,2.6421]
[1735568057948,13.14648318,189.68,189.59,1.4833]
[1735568058148,9.94588318,189.68,189.6,12.02773061]
[1735568058446,21.56366227,189.71,189.6,12.02773061]
[1735568058847,2.6412,189.7,189.66,2.6416]
[1735568059947,2.6415,189.67,189.63,2.642]
[1735568060146,12.02773061,189.72,189.6,12.02773061]
[1735568060347,2.6415,189.67,189.63,2.642]
[1735568060548,10.02858686,189.73,189.6,12.02773061]
[1735568060847,2.6416,189.66,189.63,2.642]
[1735568061049,12.02773061,189.71,189.6,12.02773061]
[1735568062247,2.6415,189.68,189.63,2.6419]
[1735568062950,12.02773061,189.71,189.63,2.6419]
[1735568063251,0.79144188,189.7,189.63,2.6419]
[1735568063751,2.6414,189.68,189.63,2.6419]
[1735568064449,22.05631747,189.71,189.59,5.0633]
[1735568064645,0.79144316,189.7,189.59,1.4833]
[1735568065253,2.6419,189.65,189.6,2.6423]
[1735568066654,2.6419,189.64,189.6,2.6423]
[1735568067046,12.02773061,189.65,189.55,1.5893]
[1735568067251,2.6424,189.61,189.55,1.5893]
[1735568067653,2.6424,189.61,189.57,2.6428]
[1735568067846,2.6425,189.6,189.54,61.08632054]
[1735568068351,3.58,189.6,189.49,3.0476]
[1735568068654,2.6429,189.57,189.49,4.6472]
[1735568068857,2.6429,189.57,189.53,2.6434]
[1735568069151,10.02858686,189.61,189.49,4.6472]
[1735568069356,2.6422,189.62,189.58,2.6427]
[1735568071753,2.6422,189.61,189.54,12.02773061]
[1735568071954,2.6422,189.61,189.57,2.6428]
[1735568072954,13.60858686,189.64,189.54,12.02773061]
[1735568073156,2.6422,189.61,189.54,12.02773061]
[1735568073459,12.02773061,189.62,189.51,12.02773061]
[1735568073664,12.02773061,189.62,189.54,2.6432]
[1735568073665,2.6427,189.59,189.54,2.6432]
[1735568074559,2.6427,189.59,189.55,2.643]
[1735568075754,2.6428,189.57,189.54,2.6432]
[1735568075959,2.6428,189.57,189.51,12.02773061]
[1735568076555,2.6428,189.57,189.53,2.6433]
[1735568076953,2.643,189.56,189.53,2.6433]
[1735568078457,2.6433,189.54,189.52,2.6435]
[1735568078652,12.02773061,189.59,189.49,4.6472]
[1735568078853,3.58,189.58,189.49,1.5996]
[1735568079060,6.8144,189.58,189.49,4.2434]
[1735568079355,6.8144,189.58,189.49,1.5996]
[1735568079756,2.6433,189.54,189.5,2.6437]
[1735568080255,2.6433,189.54,189.5,2.6438]
[1735568081958,3.58,189.57,189.49,1.5996]
[1735568082160,6.223,189.57,189.52,2.6434]
[1735568082472,2.643,189.57,189.49,1.5996]
[1735568082665,3.58,189.62,189.51,12.02773061]
[1735568083056,2.6423,189.62,189.51,12.02773061]
[1735568083262,2.6423,189.62,189.54,12.02773061]
[1735568083763,2.6423,189.62,189.57,2.6427]
[1735568084262,2.6423,189.61,189.57,2.6427]
[1735568086259,2.6422,189.62,189.54,12.02773061]
[1735568087664,2.6422,189.62,189.58,2.6426]
[1735568088762,10.03005319,189.65,189.57,12.02773061]
[1735568088957,21.56366227,189.69,189.6,12.02773061]
[1735568089164,21.56366227,189.68,189.6,12.02773061]
[1735568089370,21.56366227,189.68,189.65,2.6416]
[1735568090169,2.6411,189.7,189.65,2.6416]
[1735568095359,2.6411,189.7,189.66,2.6415]
[1735568096870,2.6411,189.7,189.63,3.58]
[1735568097067,2.6411,189.7,189.65,2.6417]
[1735568097962,21.56366227,189.75,189.63,15.60773061]
[1735568098169,21.56366227,189.75,189.69,12.02773061]
[1735568098370,21.56366227,189.75,189.7,3.58]
[1735568098868,86.33487498,189.78,189.7,5.2009]
[1735568099067,21.56366227,189.81,189.7,5.2009]
[1735568099470,21.56366227,189.81,189.7,6.7392]
[1735568100164,12.02773061,189.82,189.75,2.6402]
[1735568102570,0.79163153,189.81,189.71,3.58]
[1735568102771,12.02773061,189.82,189.71,3.58]
[1735568102965,12.02773061,189.82,189.75,2.6402]
[1735568103673,12.02773061,189.82,189.74,2.6404]
[1735568104167,12.02773061,189.82,189.74,2.6403]
[1735568104369,12.02773061,189.82,189.71,3.58]
[1735568104571,0.79170897,189.81,189.7,3.1592]
[1735568104971,12.02773061,189.82,189.71,2.6408]
[1735568105268,12.02773061,189.79,189.69,3.58]
[1735568105476,0.79142641,189.78,189.69,3.58]
[1735568105677,0.79142641,189.78,189.69,6.2211]
[1735568106174,0.79142641,189.78,189.69,2.6411]
[1735568106468,0.79142641,189.78,189.7,2.641]
[1735568106673,15.60773061,189.79,189.7,2.641]
[1735568108070,0.79138978,189.78,189.69,2.6411]
[1735568108274,0.79138978,189.78,189.66,15.58773061]
[1735568108472,0.79138978,189.78,189.7,2.6409]
[1735568108672,0.79138978,189.78,189.66,15.58773061]
[1735568109473,0.79138978,189.78,189.7,2.6409]
[1735568109878,15.60773061,189.79,189.7,2.6409]
[1735568110083,0.79164048,189.78,189.66,15.58773061]
[1735568110678,12.02773061,189.76,189.64,3.75678163]
[1735568110880,3.98794048,189.75,189.65,2.6416]
[1735568111178,3.1963,189.75,189.64,3.75678163]
[1735568112071,3.1963,189.75,189.67,2.6412]
[1735568114294,3.1963,189.75,189.66,2.6412]
[1735568115184,3.1963,189.75,189.66,2.6411]
[1735568116296,3.56,189.8,189.64,3.75678163]
[1735568116498,4.35196576,189.79,189.68,12.02773061]
[1735568116795,15.58773061,189.81,189.73,2.6401]
[1735568117188,12.02773061,189.81,189.69,3.56]
[1735568117392,12.02773061,189.81,189.74,2.64]
[1735568117593,12.02773061,189.81,189.7,1.4895]
[1735568117795,12.02773061,189.81,189.73,2.6401]
[1735568118191,12.02773061,189.81,189.71,3.56]
[1735568118396,12.02773061,189.81,189.75,2.6398]
[1735568118587,6.5689,189.82,189.71,15.58773061]
[1735568118793,6.5689,189.82,189.71,17.06993061]
[1735568119492,6.5689,189.82,189.75,2.6399]
[1735568121599,12.02773061,189.87,189.75,12.02773061]
[1735568121793,0.79140373,189.86,189.75,12.02773061]
[1735568122096,15.12683061,189.87,189.75,12.02773061]
[1735568122491,3.0991,189.87,189.78,12.02773061]
[1735568122696,3.0991,189.87,189.81,2.639]
[1735568122900,37.15139288,189.9,189.78,15.58773061]
[1735568123087,37.15139288,189.9,189.83,2.6386]
[1735568123292,33.59139288,189.9,189.79,1.5999]
[1735568123497,12.02773061,189.9,189.79,1.5999]
[1735568123690,12.02773061,189.9,189.83,2.6387]
[1735568124203,12.02773061,189.9,189.79,1.5999]
[1735568124397,3.56,189.92,189.79,3.0713]
[1735568124699,3.56,189.92,189.81,12.02773061]
[1735568125601,3.56,189.92,189.84,2.6386]
[1735568126896,3.0655,189.93,189.84,3.56]
[1735568127504,21.56366227,190.0,189.87,12.02773061]
[1735568127803,12.02773061,190.01,189.88,1.5849]
[1735568128103,21.56366227,190.04,189.93,12.02773061]
[1735568128600,21.56366227,190.04,189.94,2.6371]
[1735568128802,25.12366227,190.04,189.94,2.6371]
[1735568129105,21.56366227,190.04,189.96,2.6369]
[1735568129495,1.4918,190.05,189.96,2.6369]
[1735568131199,1.4918,190.05,189.97,12.02773061]
[1735568131394,1.6309,190.06,189.97,12.02773061]
[1735568131796,12.02773061,190.1,190.02,2.636]
[1735568132099,12.02773061,190.1,189.99,3.56]
[1735568132302,12.02773061,190.1,190.01,2.6362]
[1735568132705,12.02773061,190.1,189.98,1.4927]
[1735568132906,12.02773061,190.07,189.93,12.02773061]
[1735568133101,12.02773061,190.04,189.9,13.52043061]
[1735568133299,12.02773061,190.04,189.93,2.6372]
[1735568133300,1.4725,190.03,189.93,2.6372]
[1735568133504,1.4725,190.03,189.9,13.52043061]
[1735568134106,1.4725,190.03,189.93,12.02773061]
[1735568134302,1.4725,190.03,189.98,2.6367]
[1735568134604,1.4725,190.03,189.9,13.52043061]
[1735568134800,12.02773061,190.02,189.92,2.6374]
[1735568135004,12.02773061,190.02,189.9,13.52043061]
[1735568135405,12.02773061,190.02,189.91,2.6376]
[1735568136303,12.02773061,190.02,189.9,4.1305]
[1735568136502,12.02773061,189.99,189.9,1.4927]
[1735568136712,3.56,189.98,189.9,1.4927]
[1735568137411,12.02773061,189.96,189.84,12.02773061]
[1735568137611,1.4994,189.95,189.83,2.6388]
[1735568137908,12.02773061,189.93,189.82,1.6135]
[1735568138210,3.56,189.92,189.82,1.6135]
[1735568139004,12.02773061,189.9,189.78,12.02773061]
[1735568139202,12.02773061,189.87,189.76,4.7254]
[1735568139402,12.02773061,189.87,189.77,2.6395]
[1735568139609,12.02773061,189.9,189.76,4.7254]
[1735568139813,12.02773061,189.9,189.78,12.02773061]
[1735568140009,12.02773061,189.9,189.81,2.639]
[1735568140211,12.02773061,189.9,189.78,12.02773061]
[1735568140407,12.02773061,189.9,189.78,2.6394]
[1735568140710,9.5578004,189.96,189.77,3.56]
[1735568140903,12.02773061,189.94,189.82,12.02773061]
[1735568141507,12.02773061,189.94,189.85,2.6385]
[1735568141703,1.5439,189.96,189.85,12.02773061]
[1735568142113,3.56,189.98,189.85,12.02773061]
[1735568142313,3.56,189.98,189.86,1.5771]
[1735568142517,3.56,189.98,189.87,3.56]
[1735568142709,3.56,189.98,189.86,3.1745]
[1735568142909,19.20681202,189.96,189.86,1.5771]
[1735568143215,1.5235,189.95,189.86,1.5771]
[1735568143512,1.5235,189.95,189.82,3.56]
[1735568143815,1.6155,189.94,189.82,3.56]
[1735568144312,1.6155,189.94,189.82,6.1988]
[1735568144515,19.20681202,189.93,189.8,1.5699]
[1735568144715,3.56,189.92,189.8,1.5699]
[1735568145312,3.56,189.92,189.8,4.209]
[1735568146015,3.56,189.92,189.8,1.5699]
[1735568147210,20.73901202,189.93,189.8,1.5699]
[1735568147806,3.56,189.93,189.8,1.5699]
[1735568148713,3.56,189.93,189.84,2.6385]
[1735568149710,3.56,189.93,189.85,2.6385]
[1735568149914,3.56,189.93,189.83,3.56]
[1735568150411,3.56,189.93,189.85,2.6385]
[1735568151112,3.56,189.93,189.83,3.56]
[1735568151616,1.5235,189.95,189.83,3.56]
[1735568151813,1.5804,189.98,189.85,19.20681202]
[1735568152211,1.5804,189.98,189.89,2.6378]
[1735568153518,3.56,190.01,189.89,2.6378]
[1735568153713,3.56,190.01,189.9,2.6378]
[1735568154115,3.56,190.01,189.85,19.20681202]
[1735568154520,19.20681202,190.02,189.89,2.6379]
[1735568154718,3.56,190.0,189.89,2.6379]
[1735568155318,19.20681202,189.99,189.87,2.6382]
[1735568155520,19.20681202,189.99,189.83,3.56]
[1735568155721,3.56,189.98,189.83,3.56]
[1735568156114,1.538,189.97,189.84,3.56]
[1735568156317,19.20681202,189.96,189.84,6.1985]
[1735568156713,1.5223,189.95,189.81,3.56]
[1735568157013,1.5223,189.95,189.83,2.6387]
[1735568157413,1.5223,189.95,189.81,3.56]
[1735568157617,1.5223,189.95,189.82,19.20681202]
[1735568158322,1.5223,189.95,189.88,2.638]
[1735568159621,1.5223,189.95,189.85,2.6384]
[1735568160120,1.5223,189.95,189.87,2.6382]
[1735568160620,1.5223,189.95,189.82,19.20681202]
[1735568160823,1.5223,189.95,189.86,2.6383]
[1735568161821,1.5223,189.95,189.81,3.56]
[1735568162321,1.5223,189.95,189.84,2.6386]
[1735568163220,1.5223,189.95,189.82,19.20681202]
[1735568164127,3.56,189.96,189.82,19.20681202]
[1735568164316,1.538,189.97,189.87,12.00406017]
[1735568164519,3.56,189.99,189.91,2.6376]
[1735568164722,1.4818,190.0,189.88,1.5088]
[1735568164922,1.4818,190.0,189.9,2.6377]
[1735568165222,13.48586017,190.0,189.88,3.0405]
[1735568166321,13.48586017,190.0,189.91,2.6376]
[1735568166729,13.48586017,190.0,189.88,3.0405]
[1735568166924,1.4818,190.0,189.88,3.0405]
[1735568167123,1.4818,190.0,189.9,12.00406017]
[1735568167319,5.1866,190.02,189.9,12.00406017]
[1735568167523,5.1866,190.02,189.94,2.6371]
[1735568168127,1.6266,190.02,189.96,2.6369]
[1735568168423,1.5572,190.06,189.93,12.00406017]
[1735568168624,1.5572,190.06,189.94,3.56]
[1735568169525,1.5572,190.06,189.98,2.6366]
[1735568169730,1.5572,190.06,189.94,3.56]
[1735568171219,1.5572,190.06,189.97,2.6368]
[1735568171423,1.5572,190.06,189.94,3.56]
[1735568172538,1.5572,190.06,189.98,2.6366]
[1735568172832,17.11476017,190.08,189.98,2.6366]
[1735568173126,17.11476017,190.08,189.99,2.6365]
[1735568174728,17.11476017,190.08,189.96,1.4733]
[1735568174934,12.00406017,190.05,189.96,1.4733]
[1735568175426,17.11476017,190.08,189.96,1.4733]
[1735568175827,17.11476017,190.08,189.96,13.47736017]
[1735568176035,17.11476017,190.08,189.96,15.09276017]
[1735568176328,1.5507,190.08,189.96,15.09276017]
[1735568176531,1.5107,190.1,189.99,12.00406017]
[1735568176924,12.00406017,190.11,189.99,15.56406017]
[1735568177238,13.62526017,190.14,189.99,15.56406017]
[1735568177434,3.56,190.13,190.02,12.00406017]
[1735568178329,3.56,190.13,190.05,2.6357]
[1735568178535,3.56,190.13,190.02,12.00406017]
[1735568178839,3.56,190.13,190.06,2.6355]
[1735568179538,1.6212,190.14,190.06,2.6355]
[1735568180433,1.6212,190.14,190.04,2.6358]
[1735568180731,1.6212,190.14,190.02,15.56406017]
[1735568180926,1.6212,190.14,190.05,2.6357]
[1735568182429,1.6212,190.14,190.02,15.56406017]
[1735568182632,1.6212,190.14,190.02,12.00406017]
[1735568183432,1.6212,190.14,190.04,2.6357]
[1735568185529,1.6212,190.14,190.0,3.56]
[1735568186833,1.6212,190.14,189.99,12.00406017]
[1735568187036,1.6212,190.14,190.0,3.56]
[1735568187636,1.6212,190.14,190.04,2.6357]
[1735568188233,1.6212,190.14,190.02,12.00406017]
[1735568188432,5.1812,190.14,190.02,12.00406017]
[1735568188733,5.1812,190.14,190.06,2.6356]
[1735568189040,5.1812,190.14,190.02,12.00406017]
[1735568189543,12.00406017,190.12,190.0,3.56]
[1735568189836,5.1812,190.14,190.01,12.00406017]
[1735568190033,17.18526017,190.14,190.01,12.00406017]
[1735568190434,17.18526017,190.14,190.04,2.6358]
[1735568193257,17.18526017,190.14,190.01,12.00406017]
[1735568193448,17.18526017,190.14,190.03,2.636]
[1735568193857,3.56,190.13,190.04,2.6358]
[1735568195155,3.56,190.13,190.03,2.6359]
[1735568195455,3.56,190.13,190.01,12.00406017]
[1735568195846,3.56,190.13,190.05,2.6356]
[1735568196052,3.56,190.13,190.01,12.00406017]
[1735568197057,3.56,190.13,190.04,2.6358]
[1735568198654,13.62526017,190.14,190.04,2.6358]
[1735568198854,3.56,190.13,190.01,12.00406017]
[1735568199160,3.56,190.13,190.04,2.6358]
[1735568199554,3.56,190.13,190.01,12.00406017]
[1735568200357,3.56,190.13,190.04,2.6358]
[1735568200557,3.56,190.13,190.01,12.00406017]
[1735568201757,3.56,190.13,190.03,2.6359]
[1735568201954,12.00406017,190.11,189.97,1.5275]
[1735568202161,12.00406017,190.08,189.97,4.1643]
[1735568202356,8.52963163,190.04,189.97,11.16643163]
[1735568203056,8.52963163,190.02,189.96,1.4733]
[1735568204355,11.99816048,190.04,189.96,1.4733]
[1735568205160,3.56,190.03,189.96,1.4733]
[1735568206060,3.56,190.03,189.94,2.6372]
[1735568206954,11.99816048,190.01,189.91,1.5366]
[1735568207760,11.99816048,190.01,189.88,11.99816048]
[1735568208062,1.5803,190.0,189.88,11.99816048]
[1735568208267,11.99816048,189.98,189.86,1.5526]
[1735568208556,3.56,189.97,189.86,1.5526]
[1735568209664,3.56,189.97,189.88,2.638]
[1735568212164,3.56,189.97,189.89,2.6379]
[1735568212364,3.56,189.97,189.86,1.5526]
[1735568212956,3.56,189.97,189.87,2.6381]
[1735568213156,3.56,189.97,189.86,1.5526]
[1735568213561,11.99816048,189.95,189.86,1.5526]
[1735568213759,11.99816048,189.95,189.81,11.99816048]
[1735568214460,11.99816048,189.95,189.84,2.6386]
[1735568214660,11.99816048,189.95,189.81,11.99816048]
[1735568214858,11.99816048,189.95,189.78,6.5336]
[1735568215062,11.99816048,189.95,189.83,2.6387]
[1735568216665,11.99816048,189.92,189.83,2.6387]
[1735568216968,3.56,189.91,189.83,2.6387]
[1735568217566,3.56,189.9,189.83,2.6387]
[1735568218869,11.99816048,189.89,189.78,14.97176048]
[1735568219461,11.99816048,189.89,189.79,2.6393]
[1735568221066,3.56,189.9,189.79,11.99816048]
[1735568221268,3.56,189.95,189.85,11.99816048]
[1735568221464,1.5736,189.98,189.86,1.624]
[1735568221465,13.57176048,189.98,189.86,1.624]
[1735568221767,4.35096122,189.97,189.89,2.6378]
[1735568221964,3.56,189.97,189.89,2.6378]
[1735568222170,3.56,189.96,189.89,2.6378]
[1735568222567,13.57176048,189.98,189.86,1.624]
[1735568222770,3.56,189.97,189.88,11.99816048]
[1735568223467,11.99816048,190.01,189.88,11.99816048]
[1735568223670,3.56,190.01,189.91,11.99816048]
[1735568224080,3.56,190.03,189.91,11.99816048]
[1735568224273,1.4869,190.04,189.91,11.99816048]
[1735568224569,3.56,190.05,189.94,11.99816048]
[1735568224772,3.56,190.05,189.98,2.6367]
[1735568225169,3.56,190.05,189.97,2.6368]
[1735568225569,3.56,190.05,189.95,3.1477]
[1735568225770,3.56,190.05,189.98,2.6366]
[1735568226469,3.56,190.05,189.98,2.6367]
[1735568228969,3.56,190.05,189.97,11.99816048]
[1735568229372,1.5468,190.09,189.97,11.99816048]
[1735568229573,5.1068,190.09,189.97,11.99816048]
[1735568230370,5.1068,190.09,189.99,2.6364]
[1735568230776,5.1068,190.09,189.97,11.99816048]
[1735568230975,15.55816048,190.1,190.03,2.6359]
[1735568231171,111.05908826,190.13,190.0,11.99816048]
[1735568231677,3.56,190.14,190.07,2.6354]
[1735568232379,3.56,190.14,190.04,3.1165]
[1735568232577,3.56,190.14,190.05,1.4984]
[1735568232780,3.56,190.14,190.06,11.99816048]
[1735568232979,11.99816048,190.17,190.06,11.99816048]
[1735568233576,15.55816048,190.17,190.06,11.99816048]
[1735568234473,15.55816048,190.17,190.09,2.6351]
[1735568234975,5.031,190.19,190.12,2.6346]
[1735568235173,5.031,190.19,190.06,11.99816048]
[1735568235784,5.031,190.19,190.11,2.6349]
[1735568235981,5.031,190.19,190.06,11.99816048]
[1735568236293,5.031,190.19,190.11,2.6348]
[1735568236473,1.471,190.19,190.11,2.6348]
[1735568237781,16.60968519,190.2,190.11,2.6348]
[1735568237976,16.60968519,190.2,190.09,11.99816048]
[1735568238179,1.05152471,190.2,190.12,11.99816048]
[1735568238378,11.99816048,190.23,190.13,1.5989]
[1735568239084,1.5521,190.24,190.13,1.5989]
[1735568239282,11.99816048,190.23,190.13,3.0807]
[1735568239785,11.99816048,190.23,190.14,2.6344]
[1735568240585,11.99816048,190.23,190.15,2.6342]
[1735568241082,11.99816048,190.23,190.14,2.6344]
[1735568241379,11.99816048,190.23,190.13,1.5989]
[1735568242282,1.6067,190.29,190.13,1.5989]
[1735568242479,11.99816048,190.25,190.13,1.5989]
[1735568242887,11.99816048,190.25,190.15,2.6342]
[1735568243185,11.99816048,190.25,190.13,1.5989]
[1735568243387,15.53816048,190.25,190.13,1.5989]
[1735568243685,15.53816048,190.25,190.17,2.634]
[1735568243883,15.53816048,190.25,190.13,1.5989]
[1735568244078,11.99816048,190.22,190.13,1.5989]
[1735568245087,11.99816048,190.22,190.15,2.6342]
[1735568245288,11.99816048,190.22,190.13,1.5989]
[1735568246189,11.99816048,190.22,190.15,2.6343]
[1735568246390,3.54,190.25,190.15,2.6343]
[1735568246590,11.99816048,190.23,190.15,2.6343]
[1735568248189,3.54,190.25,190.17,2.6339]
[1735568248397,3.54,190.25,190.14,11.99816048]
[1735568248692,11.99816048,190.24,190.13,1.5989]
[1735568250195,8.51273008,190.22,190.16,2.6341]
[1735568250786,8.51273008,190.2,190.13,10.11163008]
[1735568250994,8.51273008,190.23,190.15,8.51273008]
[1735568251787,8.51273008,190.23,190.16,2.6341]
[1735568251989,8.51273008,190.23,190.15,8.51273008]
[1735568252393,8.51273008,190.21,190.16,2.6342]
[1735568252591,8.51273008,190.21,190.13,10.11163008]
[1735568252890,8.51273008,190.19,190.14,2.6344]
[1735568253094,8.51273008,190.21,190.15,8.51273008]
[1735568253490,8.51273008,190.23,190.17,2.634]
[1735568253794,8.51273008,190.23,190.15,8.51273008]
[1735568253993,8.51273008,190.23,190.16,2.6341]
[1735568254496,8.51273008,190.23,190.15,8.51273008]
[1735568255493,3.54,190.26,190.16,2.6342]
[1735568255692,8.51273008,190.22,190.16,2.6342]
[1735568256993,8.51273008,190.22,190.13,10.11163008]
[1735568257393,8.51273008,190.22,190.16,2.6341]
[1735568257595,8.51273008,190.22,190.15,8.51273008]
[1735568257902,8.51273008,190.18,190.06,1.5962]
[1735568258195,8.51273008,190.16,190.09,8.51273008]
[1735568258399,8.51273008,190.16,190.07,8.51273008]
[1735568258593,8.51273008,190.14,190.08,2.6352]
[1735568258994,8.51273008,190.16,190.08,2.6352]
[1735568259191,8.51273008,190.16,190.09,8.51273008]
[1735568259395,8.51273008,190.16,190.1,2.6349]
[1735568262399,8.51273008,190.16,190.09,11.14783008]
[1735568262997,8.51273008,190.16,190.09,8.51273008]
[1735568264301,8.51273008,190.16,190.09,11.14783008]
[1735568264690,8.51273008,190.14,190.09,2.6351]
[1735568265297,8.51273008,190.16,190.09,2.6351]
[1735568265692,8.51273008,190.14,190.07,8.51273008]
[1735568266094,8.51273008,190.14,190.06,1.5163]
[1735568266296,8.51273008,190.14,190.07,2.6354]
[1735568266496,8.51273008,190.14,190.05,8.51273008]
[1735568266794,8.51273008,190.1,190.01,8.51273008]
[1735568267194,8.51273008,190.08,190.01,8.51273008]
[1735568267601,8.51273008,190.08,190.01,11.14883008]
[1735568268800,8.51273008,190.08,190.02,2.6361]
[1735568269499,3.0826,190.11,190.05,8.51273008]
[1735568269797,8.51273008,190.14,190.07,8.51273008]
[1735568270001,12.05273008,190.16,190.09,8.51273008]
[1735568270198,3.54,190.16,190.1,2.635]
[1735568271007,3.54,190.16,190.09,2.6351]
[1735568271701,3.54,190.16,190.06,2.6355]
[1735568272006,3.54,190.16,190.04,13.30816002]
[1735568272706,3.54,190.16,190.09,2.6351]
[1735568273305,3.54,190.16,190.1,2.6349]
[1735568273604,12.82709057,190.19,190.07,16.84816002]
[1735568273804,12.82709057,190.19,190.11,2.6349]
[1735568274004,12.82709057,190.19,190.07,16.84816002]
[1735568274306,12.82709057,190.19,190.1,2.6349]
[1735568274600,12.82709057,190.19,190.07,16.84816002]
[1735568274905,12.82709057,190.19,190.1,2.6349]
[1735568275105,12.82709057,190.19,190.07,16.84816002]
[1735568275400,12.82709057,190.19,190.12,2.6346]
[1735568276998,3.1261,190.19,190.12,2.6346]
[1735568277803,3.1261,190.19,190.08,1.4791]
[1735568278607,3.1261,190.19,190.09,2.6351]
[1735568278807,3.1261,190.19,190.08,1.4791]
[1735568279017,13.30816002,190.18,190.05,3.54]
[1735568279207,13.30816002,190.18,190.08,2.6353]
[1735568280209,13.30816002,190.18,190.05,3.54]
[1735568280409,13.30816002,190.18,190.07,13.30816002]
[1735568280916,13.30816002,190.18,190.1,2.635]
[1735568282518,13.30816002,190.18,190.08,2.6352]
[1735568282719,13.30816002,190.18,190.04,13.30816002]
[1735568283320,0.79375029,190.17,190.04,13.30816002]
[1735568283716,13.30816002,190.15,190.01,13.30816002]
[1735568283919,3.54,190.14,190.01,13.30816002]
[1735568284619,3.54,190.14,190.04,13.30816002]
[1735568284816,3.54,190.14,190.08,2.6352]
[1735568285217,3.54,190.14,190.04,16.84816002]
[1735568285418,3.54,190.14,190.09,2.635]
[1735568286423,26.59668536,190.18,190.05,1.6059]
[1735568287123,26.59668536,190.18,190.09,2.6351]
[1735568287524,26.59668536,190.18,190.07,2.6353]
[1735568287724,0.79326342,190.17,190.07,2.6353]
[1735568288022,9.74852534,190.17,190.06,2.6355]
[1735568288322,13.30816002,190.15,190.01,13.30816002]
[1735568288518,13.30816002,190.15,190.0,14.81646002]
[1735568288924,13.30816002,190.15,190.03,2.6359]
[1735568291226,13.30816002,190.15,190.02,2.636]
[1735568292324,8.52295124,190.11,190.03,11.15895124]
[1735568292622,3.54,190.1,190.03,11.15895124]
[1735568294828,3.54,190.1,190.03,8.52295124]
[1735568295930,8.52295124,190.09,190.01,11.15915124]
[1735568296224,8.52295124,190.07,189.99,8.52295124]
[1735568296425,8.52295124,190.07,190.0,2.6364]
[1735568296630,3.1915,190.09,190.0,2.6364]
[1735568296926,8.52295124,190.07,189.99,11.15935124]
[1735568297129,8.52295124,190.05,189.98,8.52295124]
[1735568297330,12.06295124,190.05,189.98,8.52295124]
[1735568298130,3.54,190.05,190.01,2.6362]
[1735568298328,3.54,190.05,189.98,8.52295124]
[1735568298329,3.54,190.05,190.0,8.52295124]
[1735568298631,5.1505,190.09,190.04,8.52295124]
[1735568300031,13.67345124,190.09,190.02,2.6361]
[1735568300225,5.1505,190.09,189.97,3.54]
[1735568300730,5.1505,190.09,190.0,2.6363]
[1735568301431,5.1505,190.09,189.99,2.6365]
[1735568301631,14.88043482,190.09,189.99,2.6365]
[1735568302528,13.322067,190.07,189.98,2.6366]
[1735568303125,13.322067,190.07,189.95,1.5701]
[1735568303335,13.322067,190.07,189.95,4.2071]
[1735568303631,1.5485,190.06,189.95,1.5701]
[1735568304627,1.5485,190.06,189.97,2.6368]
[1735568305634,1.5485,190.06,189.96,2.6369]
[1735568305932,1.5485,190.06,189.95,1.5701]
[1735568306133,1.5485,190.06,189.96,2.6369]
[1735568306528,1.5485,190.06,189.95,1.5701]
[1735568306930,1.5485,190.06,189.96,2.6369]
[1735568308735,1.5485,190.06,189.95,1.5701]